Cogmind - Beta 9.5 @@@ ROGUE MODE // 2020.04.05 @ 03:14:43 // Winter2019/RPGLIKE Player: Xii Result: Destroyed by Lightning with EMDS Performance ------------- Evolutions (6) 3000 Regions Visited (15) 3000 Robots Destroyed (262) 1310 Value Destroyed (11270) 11270 Prototype IDs (38) 760 Alien Tech Used (0) 0 Bonus (7402) 7402 TOTAL SCORE: 26742 Bonus ------- Triggered High Security 500 High Alert Combat Kills 5014 Follower Combat Kills 1744 Network Hubs Disabled 200 Aligned with FarCom 300 Built Enhanced Grunts 300 Met R17 at Cetus 500 Friendly Fire -1156 Cogmind --------- Core Integrity 0/850 Matter 365/400 Energy 49/750 System Corruption 20% Temperature Cool (4) Movement Immobile (Siege) Ox1 Location -4/Hub_04(d) Parts ------- > --- POWER (2) -------- Quantum Reactor Quantum Reactor > --- PROPULSION (4) --- Centrium Heavy Treads Potential Leg Potential Leg > --- UTILITY (10) ----- Advanced Cooling System Experimental Signal Interpreter Improved Weapon Cycler Improved Phase Shifter Centrium Medium Armor Plating Centrium Medium Armor Plating Centrium Medium Armor Plating Reactive Plating Force Field Long-range Tractor Beam > --- WEAPON (6) ------- Railgun Improved KE Penetrator Improved KE Penetrator Improved KE Penetrator Micro-nuke Launcher Longsword +1 > --- INVENTORY (6) ---- Advanced Energy Well (0) Long-range Terrain Scanner Improved Component Analysis Suite Improved Recalibrator AWS/Gauss Peak State ------------ > --- POWER ------------ Quantum Reactor Quantum Reactor > --- PROPULSION ------- Centrium Heavy Treads Potential Leg Potential Leg > --- UTILITY ---------- Advanced Cooling System Advanced Energy Well Experimental Signal Interpreter Improved Weapon Cycler Improved Phase Shifter Centrium Medium Armor Plating Centrium Medium Armor Plating Centrium Medium Armor Plating Reactive Plating Force Field > --- WEAPON ----------- Railgun Improved KE Penetrator Improved KE Penetrator Improved KE Penetrator AWS/Gauss > --- INVENTORY -------- Long-range Terrain Scanner Improved Component Analysis Suite Long-range Tractor Beam Improved Recalibrator Shock Bomb Launcher Longsword +1 [Rating: 174] Favorites ----------- Power Cooled Ion Engine Engine Cooled Ion Engine Power Core Fission Core Reactor Quantum Reactor Propulsion Potential Leg Treads Improved Treads Leg Potential Leg Wheel Wheel Hover Unit Improved Hover Unit Utility Reactive Plating Device Long-range Terrain Scanner Storage Advanced Energy Well Processor Experimental Signal Interpreter Protection Reactive Plating Weapon Gauss Rifle Energy Gun Heavy EM Shotgun Energy Cannon Advanced Beam Cannon Ballistic Gun Gauss Rifle Launcher Shock Bomb Launcher Slashing Weapon Longsword +1 Build | -11 -10 -10 -9 -9 -9 -8 -8 -7 -6 -5 -4 -4 -4 -4 -4 ------- Run | Scr Mat Min Mat Min Exi Min Mat Fac Fac Fac Fac Ext Cet Arc Hub Slots Evolved 18 | 3 . . 2 . 1 . 5 2 2 1 2 . . . . Power 1 | . . . . . . . 1 . . . . . . . . Propulsion 3 | 2 . . 1 . . . . . . . . . . . . Utility 9 | . . . 1 . . . 2 2 1 1 2 . . . . Weapon 5 | 1 . . . . 1 . 2 . 1 . . . . . . Parts Attached 182 | 5 . 3 18 2 4 . 26 11 30 7 33 21 14 . 8 Power 11 | . . . 2 . . . 2 . 2 . 1 2 2 . . Engine 3 | . . . 2 . . . 1 . . . . . . . . Core 6 | . . . . . . . 1 . 2 . 1 2 . . . Reactor 2 | . . . . . . . . . . . . . 2 . . Propulsion 23 | 3 . . 5 . 2 . 4 . 4 1 1 2 1 . . Treads 9 | 2 . . . . . . 1 . 2 1 . 2 1 . . Leg 8 | . . . . . 2 . 3 . 2 . 1 . . . . Wheel 2 | 1 . . 1 . . . . . . . . . . . . Hover 4 | . . . 4 . . . . . . . . . . . . Flight . | . . . . . . . . . . . . . . . . Utility 59 | 1 . . 2 . . . 6 3 15 5 13 7 4 . 3 Device 44 | 1 . . . . . . 3 1 13 5 13 5 1 . 2 Storage 1 | . . . . . . . . . . . . . 1 . . Processor 1 | . . . . . . . . . 1 . . . . . . Hackware . | . . . . . . . . . . . . . . . . Protection 13 | . . . 2 . . . 3 2 1 . . 2 2 . 1 Artifact . | . . . . . . . . . . . . . . . . Weapon 89 | 1 . 3 9 2 2 . 14 8 9 1 18 10 7 . 5 Energy Gun 7 | 1 . 2 1 . . . 3 . . . . . . . . Energy Cannon 5 | . . . 4 1 . . . . . . . . . . . Ballistic Gun 35 | . . . 2 . 1 . 6 3 2 1 9 5 5 . 1 Ballistic Cannon . | . . . . . . . . . . . . . . . . Launcher 23 | . . 1 1 1 . . 4 1 3 . 5 3 2 . 2 Special Weapon . | . . . . . . . . . . . . . . . . Impact Weapon . | . . . . . . . . . . . . . . . . Slashing Weapon 19 | . . . 1 . 1 . 1 4 4 . 4 2 . . 2 Piercing Weapon . | . . . . . . . . . . . . . . . . Special Melee Weapon . | . . . . . . . . . . . . . . . . Unidentified Prototypes 8 | . . . 1 . . . . . 2 . . . 5 . . Parts Lost 1 | . . . . . . . . . . . . 1 . . . Power . | . . . . . . . . . . . . . . . . Propulsion . | . . . . . . . . . . . . . . . . Utility 1 | . . . . . . . . . . . . 1 . . . Weapon . | . . . . . . . . . . . . . . . . Highest Loss Streak 1 | . . . . . . . . . . . . 1 . . . Average Slot Usage (%) 91 | . 100 100 100 100 92 90 91 93 90 89 89 88 89 90 91 Engine 5 | . 14 14 12 11 10 10 13 11 4 . . . . . . Core 4 | . . . . . . . 1 . 6 10 9 9 2 . . Treads 5 | . 28 28 6 . . . 2 5 4 5 4 4 4 4 4 Leg 13 | . . . . . 12 20 23 17 15 15 14 9 9 9 9 Hover 4 | . . . 29 44 28 20 2 . . . . . . . . Device 18 | . 14 14 12 11 10 10 16 22 14 16 21 27 23 22 20 Processor 2 | . . . . . . . . . 4 5 4 4 4 4 4 Protection 9 | . . . 8 11 10 10 6 9 10 10 9 11 13 13 15 Energy Gun 1 | . 14 13 6 11 3 . 3 . . . . . . . . Energy Cannon 1 | . . . 13 11 3 . . . . . . . . . . Ballistic Gun 17 | . 14 14 4 . 5 10 17 20 21 20 20 20 20 22 20 Slashing Weapon 1 | . . . . . 6 10 1 1 3 5 2 . . . 1 Naked Turns . | . . . . . . . . . . . . . . . . Heaviest Build 120 | 10 10 11 19 19 25 25 54 64 80 81 101 108 114 114 120 Greatest Support 87 | 10 10 10 32 32 60 60 87 75 78 76 85 85 60 60 60 Greatest Overweight (x) 2 | . . 1 1 . . . . . 2 1 1 1 1 1 1 Average Overweight (x) . | . . . . . . . . . . 1 . 1 1 1 1 Largest Inventory Capacity 6 | 1 2 2 3 3 4 4 4 5 5 5 6 6 6 6 6 Average Capacity 4 | . 1 2 2 3 3 4 4 4 5 5 5 6 6 6 6 Most Carried 6 | 1 2 2 3 3 4 4 4 5 5 5 6 6 6 6 6 Average Carried 4 | . 1 2 2 3 3 4 3 4 4 4 5 5 5 6 5 Final Capacity 6 | 1 2 2 3 3 4 4 4 5 5 5 6 6 6 6 6 Final Carried 6 | 1 2 2 3 3 4 4 4 5 5 5 6 6 6 6 6 Class Distribution -------------------- 27% | Mutant 20% | Assassin 16% | Scavenger-Executioner 12% | Skirmisher 10% | Scavenger-Tank 5% | Tank 3% | Executioner 3% | Scavenger-Mutant Dominant Class ---------------- Mutant | -10/Materials Mutant | -10/Mines Mutant | -9/Materials Mutant | -9/Mines Mutant | -9/Exiles Assassin | -8/Mines Skirmisher | -8/Materials Tank | -7/Factory Mutant | -6/Factory Assassin | -5/Factory Assassin | -4/Factory Scavenger-Executioner | -4/Extension Scavenger-Executioner | -4/Cetus Scavenger-Tank | -4/Archives Scavenger-Tank | -4/Hub_04(d) Resources | -11 -10 -10 -9 -9 -9 -8 -8 -7 -6 -5 -4 -4 -4 -4 -4 ----------- Run | Scr Mat Min Mat Min Exi Min Mat Fac Fac Fac Fac Ext Cet Arc Hub Matter Collected 5542 | 259 . 44 289 31 40 . 691 211 952 202 1154 834 556 85 194 Remotely 2408 | . . . . . . . 470 211 195 48 734 556 . . 194 Salvage Created 10677 | 125 . 37 654 35 . 38 1515 849 1691 517 2101 1146 883 416 670 Parts 594 | 5 . 13 37 7 . 5 96 47 103 18 109 75 38 10 31 Haulers Intercepted 5 | . . . . . . . 2 1 1 . 1 . . . . Recyclers Shooed 8 | 1 . . 3 . . . . 2 . . 1 1 . . . Parts Field Recycled . | . . . . . . . . . . . . . . . . Retrieved Matter . | . . . . . . . . . . . . . . . . Parts Self-Destructed . | . . . . . . . . . . . . . . . . Prevented . | . . . . . . . . . . . . . . . . Kills | -11 -10 -10 -9 -9 -9 -8 -8 -7 -6 -5 -4 -4 -4 -4 -4 ------- Run | Scr Mat Min Mat Min Exi Min Mat Fac Fac Fac Fac Ext Cet Arc Hub Combat Hostiles Destroyed 200 | . . 5 16 4 . 4 32 22 37 5 31 21 9 3 11 Melee 2 | . . . . . . 1 . . 1 . . . . . . Guns 145 | . . 2 2 2 . 3 24 17 29 5 28 19 7 3 4 Cannons 10 | . . . 10 . . . . . . . . . . . . AOE 43 | . . 3 4 2 . . 8 5 7 . 3 2 2 . 7 Classes Destroyed 19 | 2 . 2 4 . . . 3 . 7 . 1 . . . . Worker 18 | . . . . . . . 3 4 4 . 3 . . . 4 Builder 12 | . . . 1 . . . . 1 4 . 4 2 . . . Tunneler 5 | 1 . 1 . . . . 1 . . . 2 . . . . Hauler 5 | . . . . . . . 2 1 1 . 1 . . . . Recycler 6 | 1 . . . . . . 2 3 . . . . . . . Operator 5 | . . . 1 . . . 3 . . . . 1 . . . Watcher 8 | . . . 1 . . . 3 1 . 2 . . 1 . . Swarmer 42 | . . 3 . 4 . 4 7 12 3 . 4 5 . . . Saboteur 3 | . . . . . . . . . 2 . 1 . . . . Grunt 79 | . . 2 11 . . . 17 8 16 1 13 7 4 . . Brawler 5 | . . . . . . . . . 3 . 1 1 . . . Duelist 3 | . . . . . . . . . 1 . . 1 1 . . Protector 5 | . . . . . . . . . . . 1 . . . 4 Sentry 28 | . . . 5 . . . 7 . 3 2 3 4 . 3 1 Demolisher 3 | . . . . . . . . . 2 . . 1 . . . Hunter 13 | . . . . . . . 1 2 1 . 6 . 1 . 2 Programmer 7 | . . . . . . . . . 3 2 2 . . . . Behemoth 2 | . . . . . . . . . 1 . . 1 . . . Cetus Guard 3 | . . . . . . . . . . . . . 3 . . Lightning 4 | . . . . . . . . . . . . . . . 4 Assembled 2 | . . . . . . . . . 2 . . . . . . Thug 1 | . . . . . . . . . . . . 1 . . . Savage 1 | . . . . . . . . . . . . . 1 . . Butcher 2 | . . . . . . . . . . . . 1 1 . . Best Kill Streak 24 | 2 . 3 14 4 . 4 9 24 13 4 11 9 5 3 13 Combat Bots Only 11 | . . 3 9 4 . 4 7 10 10 2 11 7 5 3 10 Max Kills in Single Turn 12 | 1 . 2 3 2 . 1 2 10 12 2 3 3 2 1 5 Gunslinging 1 | . . . . . . . 1 . 1 . 1 . . . . Exploded 6 | . . 2 2 2 . . 2 2 6 . 2 1 1 . 3 Melee 1 | . . . . . . 1 . . 1 . . . . . . Uniques/NPCs Destroyed . | . . . . . . . . . . . . . . . . Combat | -11 -10 -10 -9 -9 -9 -8 -8 -7 -6 -5 -4 -4 -4 -4 -4 -------- Run | Scr Mat Min Mat Min Exi Min Mat Fac Fac Fac Fac Ext Cet Arc Hub Damage Taken 6898 | . . 87 620 47 . 38 563 262 1108 133 1169 1130 425 41 1275 Core 4622 | . . 67 459 37 . 25 407 186 719 90 706 770 290 22 844 Absorbed by Shields 2692 | . . . . . . . . 96 677 141 532 442 424 43 337 Reduced by Siege Mode 7 | . . . . . . . . . . . . 3 . . 4 Redirected to Core 4152 | . . 67 367 27 . 25 364 172 629 90 655 677 256 22 801 Core Remaining (%) 91 | 100 . 97 . . . 94 98 100 81 67 . . . . . Volleys Fired 314 | 3 1 8 36 3 . . 51 12 51 13 63 42 21 5 5 Largest 5 | 2 2 2 2 2 . . 3 3 4 3 4 4 4 4 5 Hottest 189 | 70 70 85 136 113 . . 100 92 107 76 137 139 141 140 189 Shots Fired 1115 | 6 2 16 69 5 . 5 151 60 196 54 234 182 88 24 23 Gun 1014 | 6 2 14 26 2 . 5 142 59 188 54 225 173 75 24 19 Cannon 41 | . . . 39 2 . . . . . . . . . . . Launcher 60 | . . 2 4 1 . . 9 1 8 . 9 9 13 . 4 Special . | . . . . . . . . . . . . . . . . Kinetic 964 | 3 1 8 12 . . 5 118 59 188 54 225 173 75 24 19 Thermal 51 | 3 1 6 39 2 . . . . . . . . . . . Explosive 19 | . . 2 4 1 . . 8 . . . . . . . 4 Electromagnetic 81 | . . . 14 2 . . 25 1 8 . 9 9 13 . . Robot Hit Streak 51 | 5 7 17 10 9 . 2 24 19 38 16 33 51 29 23 16 Robot Miss Streak 3 | . . 1 3 2 . 1 3 2 1 1 3 3 1 1 1 Penetration Max 2 | . . . . . . . 1 . 1 . 1 2 1 . 1 Secondary Targets 18 | . . . . . . . 1 . 5 1 4 5 2 . . Max Gunslinging Chain 1 | . . . . . . . 1 . 1 1 1 1 1 . . Autonomous 196 | . . . . . . 5 46 30 47 16 14 24 7 5 2 Shots Hit Robots 902 | 5 2 11 50 3 . 6 114 51 171 47 169 158 75 21 19 Core Hits 575 | 3 1 10 33 4 . 4 70 37 85 14 120 73 46 6 69 Critical Hits 41 | . . . 1 . . . 1 . 3 3 5 12 10 5 1 Critical Kills 12 | . . . 1 . . . . . 2 . 2 3 1 2 1 Critical Parts Destroyed 23 | . . . . . . . 1 . 1 2 3 6 8 2 . Melee Attacks 88 | . . . 1 . . 2 6 14 29 12 20 2 . . 2 Impact . | . . . . . . . . . . . . . . . . Slashing 88 | . . . 1 . . 2 6 14 29 12 20 2 . . 2 Piercing . | . . . . . . . . . . . . . . . . Sneak Attacks 3 | . . . . . . 1 . . 1 . 1 . . . . Combat Hostiles 1 | . . . . . . 1 . . . . . . . . . Follow-up Attacks . | . . . . . . . . . . . . . . . . Damage Inflicted 36791 | 66 23 271 1374 162 . 288 3700 3583 6794 1280 5910 5887 3170 635 3648 Guns 23667 | 66 23 132 281 25 . 120 2767 1420 4408 1280 4557 5240 2301 635 412 Cannons 617 | . . . 575 42 . . . . . . . . . . . Explosions 11764 | . . 139 518 95 . . 933 2163 2006 . 1192 613 869 . 3236 Melee 709 | . . . . . . 168 . . 380 . 161 . . . . Ramming 34 | . . . . . . . . . . . . 34 . . . Kinetic 23023 | 41 11 50 158 . . 120 2390 1420 4408 1280 4557 5240 2301 635 412 Thermal 4856 | 25 12 82 575 42 . . 30 2114 1565 . 222 6 183 . . Explosive 4115 | . . 139 518 95 . . 886 . . . . . . . 2477 Electromagnetic 4054 | . . . 123 25 . . 394 49 441 . 970 607 686 . 759 Impact . | . . . . . . . . . . . . . . . . Slashing 709 | . . . . . . 168 . . 380 . 161 . . . . Piercing . | . . . . . . . . . . . . . . . . Highest Corruption 19 | . . . . . . . . . 1 . . . . . 19 Average Corruption 1 | . . . . . . . . . 1 . . . . . 6 Corruption Purged . | . . . . . . . . . . . . . . . . Effects 6 | . . . . . . . . . 1 . . . . . 5 Message Errors 1 | . . . . . . . . . 1 . . . . . . Data Loss (minor) 1 | . . . . . . . . . . . . . . . 1 Targeting Errors 2 | . . . . . . . . . . . . . . . 2 Weapon Failures 2 | . . . . . . . . . . . . . . . 2 Overload Shots . | . . . . . . . . . . . . . . . . Overflow Damage 680 | . . . 1 5 . . 17 309 189 . 82 15 . . 62 Projectiles 2 | . . . 1 1 . . . . . . . . . . . Explosions 592 | . . . . 4 . . 17 309 189 . . 11 . . 62 Melee 86 | . . . . . . . . . . . 82 4 . . . Knockbacks 1 | . . . . . . . . . . . . 1 . . . Impact 1 | . . . . . . . . . . . . 1 . . . Kinetic . | . . . . . . . . . . . . . . . . Secondary . | . . . . . . . . . . . . . . . . Self-Inflicted Damage 465 | . . . . . . . 132 . 115 . 9 18 . . 191 Shots 16 | . . . . . . . 3 . 5 . 2 2 . . 4 Rammed . | . . . . . . . . . . . . . . . . Targets Rammed 1 | . . . . . . . . . . . . 1 . . . Kicked 1 | . . . . . . . . . . . . 1 . . . Crushed . | . . . . . . . . . . . . . . . . Highest Temperature 523 | 18 9 83 310 . . . 45 32 95 164 294 523 32 18 18 Average Temperature 79 | 9 6 37 94 . . . 9 14 28 59 92 176 10 11 9 Received Heat Transfer 1080 | . . 42 264 . . . 180 33 186 24 98 184 36 4 29 Effects 10 | . . . . . . . . . . . 1 9 . . . Shutdowns 3 | . . . . . . . . . . . . 3 . . . Energy Bleed 3 | . . . . . . . . . . . . 3 . . . Interference 2 | . . . . . . . . . . . 1 1 . . . Matter Decay 1 | . . . . . . . . . . . . 1 . . . Damage (minor) 1 | . . . . . . . . . . . . 1 . . . Siege Activations 2 | . . . . . . . . . . . . 1 . . 1 Total Turns 39 | . . . . . . . . . . . . 31 . . 8 Longest Duration 31 | . . . . . . . . . . . . 31 . . 8 Robots Corrupted . | . . . . . . . . . . . . . . . . Combat Hostiles . | . . . . . . . . . . . . . . . . Parts Fried 18 | . . . . . . . 4 . . . 4 4 2 . 4 Impact Corruptions 1 | . . . . . . . . . . . . 1 . . . Robots Melted . | . . . . . . . . . . . . . . . . Combat Hostiles . | . . . . . . . . . . . . . . . . Parts Melted 3 | . . . . . . . . . . . . 3 . . . Heat Transferred 4143 | 74 37 222 1036 74 . . 50 1250 1050 . 250 50 50 . . Parts Sabotaged 2 | . . . . . . . . . 2 . . . . . . Parts Stolen . | . . . . . . . . . . . . . . . . Parts Stripped . | . . . . . . . . . . . . . . . . Power Chain Reactions 7 | . . . . . . . 2 . . . 3 1 1 . . Missiles Intercepted . | . . . . . . . . . . . . . . . . Alert | -11 -10 -10 -9 -9 -9 -8 -8 -7 -6 -5 -4 -4 -4 -4 -4 ------- Run | Scr Mat Min Mat Min Exi Min Mat Fac Fac Fac Fac Ext Cet Arc Hub Peak Influence 1976 | 10 32 137 505 241 . 94 689 1557 1569 1213 1976 1410 1478 821 768 Average Influence 799 | 4 15 108 285 230 . 91 424 1086 1031 921 1014 1090 1129 752 444 Maximum Alert Level 5 | . . . 2 1 . . 2 4 4 4 5 4 4 3 3 Low Security (%) 12 | 100 100 100 30 7 . 100 22 . . . . . . . . Level 1 7 | . . . 46 92 . . 9 8 . . . . . . 52 Level 2 23 | . . . 23 . . . 68 19 12 . 49 . . 23 38 Level 3 29 | . . . . . . . . 13 58 76 12 52 29 76 8 Level 4 24 | . . . . . . . . 59 28 23 14 47 70 . . Level 5 2 | . . . . . . . . . . . 18 . . . . High Security . | . . . . . . . . . . . 5 . . . . Max Security . | . . . . . . . . . . . . . . . . Squads Dispatched 42 | . 3 . 5 . . . 3 4 15 3 4 3 . . 2 Investigation 10 | . 1 . 2 . . . 2 3 1 1 . . . . . Extermination 6 | . . . . . . . . . 3 2 1 . . . . Reinforcement 13 | . 2 . 3 . . . 1 . 4 . 1 1 . . 1 Assault 10 | . . . . . . . . 1 4 . 2 2 . . 1 Garrison 3 | . . . . . . . . . 3 . . . . . . Intercept . | . . . . . . . . . . . . . . . . Construction Impeded 4 | . . . . . . . . . 2 . 1 1 . . . Haulers Reinforced 1 | . . . . . . . . . 1 . . . . . . Stealth | -11 -10 -10 -9 -9 -9 -8 -8 -7 -6 -5 -4 -4 -4 -4 -4 --------- Run | Scr Mat Min Mat Min Exi Min Mat Fac Fac Fac Fac Ext Cet Arc Hub Distress Signals 14 | . . . 6 . . . . . . 1 2 3 2 . . Communications Jammed . | . . . . . . . . . . . . . . . . Distress Signals . | . . . . . . . . . . . . . . . . Times Spotted 303 | . 3 5 29 3 . 2 45 19 44 8 46 45 23 4 27 Peak Tracking Total 20 | . 1 3 12 4 . 2 6 6 7 3 10 8 5 2 20 Tactical Retreats 13 | . . . 1 . . . 2 3 . . 5 . 1 . 1 Traps | -11 -10 -10 -9 -9 -9 -8 -8 -7 -6 -5 -4 -4 -4 -4 -4 ------- Run | Scr Mat Min Mat Min Exi Min Mat Fac Fac Fac Fac Ext Cet Arc Hub Traps Triggered 20 | . . . 1 . . . 1 . 3 1 10 4 . . . Indirectly 11 | . . . . . . . . . . . 9 2 . . . Trap Hack Attempts . | . . . . . . . . . . . . . . . . Triggered . | . . . . . . . . . . . . . . . . Disarmed . | . . . . . . . . . . . . . . . . Reprogrammed . | . . . . . . . . . . . . . . . . Reused . | . . . . . . . . . . . . . . . . Traps Extracted . | . . . . . . . . . . . . . . . . Installed . | . . . . . . . . . . . . . . . . Triggered 3 | . . . . . . . . . . . . 3 . . . Machines | -11 -10 -10 -9 -9 -9 -8 -8 -7 -6 -5 -4 -4 -4 -4 -4 ---------- Run | Scr Mat Min Mat Min Exi Min Mat Fac Fac Fac Fac Ext Cet Arc Hub Machines Disabled 85 | . . . . . . . 5 16 17 . 36 2 1 2 6 Max in Single Turn 16 | . . . . . . . 2 11 16 . 8 1 1 1 6 Garrison Access 5 | . . . . . . . . 2 . 1 1 . . . 1 Network Hub 1 | . . . . . . . . . . . . . . . 1 Machines Sabotaged . | . . . . . . . . . . . . . . . . Garrisons Compromised . | . . . . . . . . . . . . . . . . Overloaded Fab Kills . | . . . . . . . . . . . . . . . . Fab Network Shutdowns . | . . . . . . . . . . . . . . . . Hacking | -11 -10 -10 -9 -9 -9 -8 -8 -7 -6 -5 -4 -4 -4 -4 -4 --------- Run | Scr Mat Min Mat Min Exi Min Mat Fac Fac Fac Fac Ext Cet Arc Hub Machines Accessed 45 | . 4 . 2 . 2 . 11 6 3 4 2 11 . . . Terminals 33 | . 3 . 2 . . . 9 4 2 2 1 10 . . . Fabricators . | . . . . . . . . . . . . . . . . Repair Stations . | . . . . . . . . . . . . . . . . Recycling Units 5 | . 1 . . . . . 2 . . 1 . 1 . . . Scanalyzers . | . . . . . . . . . . . . . . . . Garrison Access 5 | . . . . . . . . 2 1 1 1 . . . . Total Hacks 146 | . 20 . 5 . 2 . 39 20 6 10 5 39 . . . Successful 69 | . 15 . 3 . 2 . 18 7 1 3 4 16 . . . Failed 76 | . 4 . 2 . . . 21 13 5 7 1 23 . . . Catastrophic 9 | . . . . . . . 3 2 1 . . 3 . . . Database Lockouts 1 | . 1 . . . . . . . . . . . . . . Manual 71 | . 12 . 5 . 1 . 17 6 2 6 1 20 1 . . Terminals 121 | . 19 . 5 . . . 34 15 4 4 3 37 . . . Fabricators . | . . . . . . . . . . . . . . . . Repair Stations . | . . . . . . . . . . . . . . . . Recycling Units 10 | . 1 . . . . . 5 . . 2 . 2 . . . Scanalyzers . | . . . . . . . . . . . . . . . . Garrison Access 13 | . . . . . . . . 5 2 4 2 . . . . Terminal Hacks 37 | . 8 . 1 . 2 . 11 4 . . 2 9 . . . Record 1 | . . . . . 1 . . . . . . . . . . Robot Analysis 2 | . . . . . . . 1 . . . . 1 . . . Prototype ID Bank 6 | . 1 . 1 . . . 4 . . . . . . . . Open Door 3 | . . . . . . . . . . . . 3 . . . Level Access Points 1 | . 1 . . . . . . . . . . . . . . Branch Access Points 2 | . . . . . . . . 1 . . 1 . . . . Terminal Index 2 | . 1 . . . . . . 1 . . . . . . . Alert Level 1 | . . . . . . . . . . . . 1 . . . Unreport Threat 6 | . . . . . . . 2 . . . . 4 . . . Locate Traps 6 | . 2 . . . . . 3 1 . . . . . . . Recall Investigation 1 | . 1 . . . . . . . . . . . . . . Recall Reinforcements 2 | . 2 . . . . . . . . . . . . . . Registered Components 2 | . . . . . . . . 1 . . 1 . . . . Zone Layout 1 | . . . . . . . 1 . . . . . . . . EX-Prototype ID Bank 1 | . . . . . 1 . . . . . . . . . . Fabricator Hacks . | . . . . . . . . . . . . . . . . Repair Station Hacks . | . . . . . . . . . . . . . . . . Recycling Unit Hacks 2 | . 1 . . . . . 1 . . . . . . . . Report Inventory 1 | . . . . . . . 1 . . . . . . . . Retrieve Components 1 | . 1 . . . . . . . . . . . . . . Scanalyzer . | . . . . . . . . . . . . . . . . Garrison Access Hacks 1 | . . . . . . . . . . . 1 . . . . Seal Access 1 | . . . . . . . . . . . 1 . . . . Unauthorized Hacks 71 | . 12 . 5 . . . 15 6 3 7 2 21 . . . Terminals 26 | . 6 . 2 . . . 6 1 1 2 1 7 . . . Track 8 | . 3 . 1 . . . 4 . . . . . . . . Botnet 18 | . 3 . 1 . . . 2 1 1 2 1 7 . . . Fabricators . | . . . . . . . . . . . . . . . . Repair Stations . | . . . . . . . . . . . . . . . . Recycling Units . | . . . . . . . . . . . . . . . . Scanalyzers . | . . . . . . . . . . . . . . . . Garrison Access 3 | . . . . . . . . 2 . 1 . . . . . Jam 3 | . . . . . . . . 2 . 1 . . . . . Data Cores Recovered 2 | . . . . . . . 1 . . . . 1 . . . Used 1 | . . . . . . . 1 . . . . . . . . Hacking Detections 42 | . 3 . 2 . . . 11 6 3 4 2 11 . . . Full Trace Events 3 | . . . . . . . 1 1 1 . . . . . . Feedback Events . | . . . . . . . . . . . . . . . . Feedback Blocked . | . . . . . . . . . . . . . . . . Robot Schematics Acquired . | . . . . . . . . . . . . . . . . Robots Built . | . . . . . . . . . . . . . . . . Matter . | . . . . . . . . . . . . . . . . Time . | . . . . . . . . . . . . . . . . Total Robot Build Rating . | . . . . . . . . . . . . . . . . Part Schematics Acquired . | . . . . . . . . . . . . . . . . Parts Built . | . . . . . . . . . . . . . . . . Matter . | . . . . . . . . . . . . . . . . Time . | . . . . . . . . . . . . . . . . Total Part Build Rating . | . . . . . . . . . . . . . . . . Parts Repaired . | . . . . . . . . . . . . . . . . Time . | . . . . . . . . . . . . . . . . Parts Recycled . | . . . . . . . . . . . . . . . . Recycled Matter . | . . . . . . . . . . . . . . . . Retrieved Matter . | . . . . . . . . . . . . . . . . Retrieved Components 3 | . 3 . . . . . . . . . . . . . . Parts Scanalyzed . | . . . . . . . . . . . . . . . . Part Schematics Acquired . | . . . . . . . . . . . . . . . . Parts Damaged . | . . . . . . . . . . . . . . . . Bothacking | -11 -10 -10 -9 -9 -9 -8 -8 -7 -6 -5 -4 -4 -4 -4 -4 ------------ Run | Scr Mat Min Mat Min Exi Min Mat Fac Fac Fac Fac Ext Cet Arc Hub Used RIF Installer . | . . . . . . . . . . . . . . . . Robots Hacked . | . . . . . . . . . . . . . . . . Non-combat . | . . . . . . . . . . . . . . . . Combat . | . . . . . . . . . . . . . . . . Robot Hacks Applied . | . . . . . . . . . . . . . . . . Relay Couplers Released 3 | . . . . . . . . . 1 . . . . . 2 Machine Destruction 2 | . . . . . . . . . . . . . . . 2 Programmers 1 | . . . . . . . . . 1 . . . . . . Robots Rewired 15 | . . . . . . . . . . . . 15 . . . Allies Hacked . | . . . . . . . . . . . . . . . . Hacks Repelled . | . . . . . . . . . . . . . . . . Allies | -11 -10 -10 -9 -9 -9 -8 -8 -7 -6 -5 -4 -4 -4 -4 -4 -------- Run | Scr Mat Min Mat Min Exi Min Mat Fac Fac Fac Fac Ext Cet Arc Hub Total Allies 23 | . . . . . . . . . . . . 18 5 . . Largest Group 9 | . . . . . . . . . . . . 9 7 6 6 Highest-Rated Group 516 | . . . . . . . . . . . . 434 516 516 516 Highest-Rated Ally 156 | . . . . . . . . . . . . 156 156 94 94 Total Orders 1 | . . . . . . . . . . . 1 . . . . EXPLORE 1 | . . . . . . . . . . . 1 . . . . Ally Attacks 194 | . . . . . . . . . . . . 91 69 17 17 Total Damage 6405 | . . . . . . . . . . . . 3208 1876 631 690 Kills 34 | . . . . . . . . . . . . 19 13 1 1 Allies Corrupted 2 | . . . . . . . . . . . . . . . 2 Allies Melted . | . . . . . . . . . . . . . . . . Intel | -11 -10 -10 -9 -9 -9 -8 -8 -7 -6 -5 -4 -4 -4 -4 -4 ------- Run | Scr Mat Min Mat Min Exi Min Mat Fac Fac Fac Fac Ext Cet Arc Hub Robot Analysis Total 2 | . . . . . . . 1 . . . . 1 . . . Derelict Logs Recovered . | . . . . . . . . . . . . . . . . Drone Launches 2 | . . . . . . . . . . 2 . . . . . Drone Recoveries . | . . . . . . . . . . . . . . . . Exploration | -11 -10 -10 -9 -9 -9 -8 -8 -7 -6 -5 -4 -4 -4 -4 -4 ------------- Run | Scr Mat Min Mat Min Exi Min Mat Fac Fac Fac Fac Ext Cet Arc Hub Turns Passed 6185 | 34 112 156 476 65 169 79 1001 444 1065 459 751 916 319 67 72 Spaces Moved 4148 | 20 120 130 500 108 232 80 665 361 652 284 354 412 156 41 33 Core . | . . . . . . . . . . . . . . . . Treads 88 | . . . . . . . . . 88 . . . . . . Legs 3067 | 1 . . . . 116 80 665 361 564 284 354 412 156 41 33 Wheels 372 | 19 120 130 103 . . . . . . . . . . . . Hover 621 | . . . 397 108 116 . . . . . . . . . . Flight . | . . . . . . . . . . . . . . . . Fastest Speed 48 | 80 80 80 48 48 48 90 90 90 100 136 100 130 130 130 130 Average Speed 102 | 82 80 89 60 48 69 90 102 99 117 136 109 131 130 130 130 Slowest Speed 200 | 120 80 90 100 48 90 90 107 100 200 136 136 136 130 130 130 Overloaded Moves . | . . . . . . . . . . . . . . . . Propulsion Burnouts . | . . . . . . . . . . . . . . . . Robots Hopped . | . . . . . . . . . . . . . . . . Cave-ins Triggered . | . . . . . . . . . . . . . . . . Exploration Rate (%) 38 | 3 30 30 64 27 61 21 81 20 30 12 22 70 57 74 11 Regions Visited 15 Branch Regions 8 Pre-discovered Areas 1 | . . . . . 1 . . . . . . . . . . Known Exits Taken 7 | . . 1 . . . . . . 1 1 1 1 1 1 . Unknown Exits Taken 8 | 1 1 . 1 1 1 1 1 1 . . . . . . . Scrap Searched 3 | . . 1 . 1 . 1 . . . . . . . . . Spaces Dug 86 | . . . 1 8 . . 6 14 23 12 18 2 . . 2 Terrain Destroyed 859 | . . 21 39 8 . 4 101 79 74 28 181 60 40 13 211 Melee 78 | . . . 1 . . . 6 14 23 12 18 2 . . 2 Projectile 254 | . . . 3 . . 4 27 6 17 16 79 55 24 13 10 AOE 527 | . . 21 35 8 . . 68 59 34 . 84 3 16 . 199 Actions | -11 -10 -10 -9 -9 -9 -8 -8 -7 -6 -5 -4 -4 -4 -4 -4 --------- Run | Scr Mat Min Mat Min Exi Min Mat Fac Fac Fac Fac Ext Cet Arc Hub Total 5442 | 29 134 153 605 114 241 84 899 410 829 325 583 705 234 46 51 Wait 211 | . 11 7 1 . . . 99 . 14 5 43 25 5 1 . Move 4133 | 19 119 129 499 107 231 79 664 360 651 283 353 411 155 40 33 Hop . | . . . . . . . . . . . . . . . . Pick Up 42 | 1 2 1 9 . 1 . 12 2 4 1 3 2 3 . 1 Fast Attach 62 | 5 . 1 8 . 3 . 11 1 10 2 3 8 9 . 1 Attach 15 | . . . 1 . 1 . 3 1 2 1 2 2 . . 2 Detach 8 | . . . . . 2 . . . 2 . . 2 2 . . Swap 105 | . . 2 9 2 . . 12 9 18 4 28 11 5 . 5 Drop 87 | 1 1 2 18 . 3 . 21 1 13 3 3 7 12 . 2 Fire 314 | 3 1 8 36 3 . . 51 12 51 13 63 42 21 5 5 Melee 88 | . . . 1 . . 2 6 14 29 12 20 2 . . 2 Ram . | . . . . . . . . . . . . . . . . Kick 1 | . . . . . . . . . . . . 1 . . . Crush . | . . . . . . . . . . . . . . . . Escape Stasis 5 | . . . . . . . . . . . . 5 . . . Rewire 111 | . . . . . . . . . . . . 111 . . . Trap . | . . . . . . . . . . . . . . . . Miscellaneous 260 | . . 3 23 2 . 3 20 10 35 1 65 76 22 . . Route ------- -11/Scrapyard -10/Materials (discovered 4 exits: Mat x3 / [*Min]) -10/Mines -9/Materials (discovered 3 exits: *Mat x2 / [*Min]) -9/Mines -9/Exiles -8/Mines -8/Materials (discovered 3 exits: *Fac x3) -7/Factory (discovered 4 exits: *Fac / Sto / Low x2) -6/Factory (discovered 2 exits: *Fac / [Low]) -5/Factory (discovered 2 exits: *Fac / *Upp) -4/Factory (discovered 4 exits: Upp x2 / *Ext x2) -4/Extension (discovered 3 exits: *Res x2 / *Cet) -4/Cetus (discovered 2 exits: *Res / *Arc) -4/Archives -4/Hub_04(d) (discovered 1 exit: Res) History --------- Turn | Location | Event 1 | -11/Scrapyard | Upgraded with Propulsion slot (x2) 1 | -11/Scrapyard | Upgraded with Weapon slot (x1) 1 | -11/Scrapyard | Discovered new exit (range 1) 35 | -11/Scrapyard | Entered Materials 109 | -10/Materials | Discovered new exit (range 14) 114 | -10/Materials | Central database locked down 114 | -10/Materials | Identified exit to Materials 147 | -10/Materials | Entered Mines 264 | -10/Mines | Discovered exit to Materials (range 8) 303 | -10/Mines | Entered Materials 305 | -9/Materials | Reached level 2 334 | -9/Materials | Build established: Mutant 443 | -9/Materials | Reached level 3 452 | -9/Materials | Upgraded with Utility slot (x1) 508 | -9/Materials | Destroyed 9 combat bots 552 | -9/Materials | Discovered new exit (range 12) 654 | -9/Materials | Discovered new exit (range 16) 713 | -9/Materials | Reached level 4 716 | -9/Materials | Upgraded with Propulsion slot (x1) 761 | -9/Materials | Discovered new exit (range 6) 779 | -9/Materials | Entered Mines 825 | -9/Mines | Received a Rocket Launcher from a helpful Derelict 836 | -9/Mines | Discovered new exit (range 8) 842 | -9/Mines | Deemed a non-threat by the Exiles lab entrance 844 | -9/Mines | Entered Exiles 857 | -9/Exiles | Met 8R-AWN 865 | -9/Exiles | Met EX-HEX 878 | -9/Exiles | Met EX-BIN 884 | -9/Exiles | Reached level 5 884 | -9/Exiles | Aligned with FarCom system 885 | -9/Exiles | Given EX-Vault access code 896 | -9/Exiles | Opened EX-Vault 900 | -9/Exiles | Found Longsword +1 902 | -9/Exiles | Found Potential Leg 904 | -9/Exiles | Found Potential Leg 908 | -9/Exiles | Upgraded with Weapon slot (x1) 910 | -9/Exiles | Found AWS/Gauss 931 | -9/Exiles | Warned to stay clear of 0b10 Research branches 955 | -9/Exiles | Met EX-DEC 960 | -9/Exiles | Learned location of Zion (-7) 1005 | -9/Exiles | Discovered new exit (range 11) 1013 | -9/Exiles | Stole three prototypes: AWS/Gauss, Longsword +1, Potential Leg 1013 | -9/Exiles | Entered Mines 1075 | -8/Mines | Discovered new exit (range 11) 1092 | -8/Mines | Entered Materials 1094 | -8/Materials | Reached level 6 1099 | -8/Materials | Upgraded with Power slot (x1) 1099 | -8/Materials | Upgraded with Weapon slot (x1) 1301 | -8/Materials | Reached level 7 1302 | -8/Materials | Upgraded with Utility slot (x1) 1417 | -8/Materials | Destroyed 7 combat bots 1473 | -8/Materials | Reached level 8 1474 | -8/Materials | Upgraded with Utility slot (x1) 1515 | -8/Materials | Discovered new exit (range 17) 1666 | -8/Materials | Discovered new exit (range 11) 1743 | -8/Materials | Build established: Skirmisher 1817 | -8/Materials | Reached level 9 1820 | -8/Materials | Upgraded with Weapon slot (x1) 2074 | -8/Materials | Discovered new exit (range 16) 2093 | -8/Materials | Entered Factory 2095 | -7/Factory | FarCom data flow suspended 2095 | -7/Factory | Reached level 10 2129 | -7/Factory | Reached level 11 2138 | -7/Factory | Upgraded with Utility slot (x1) 2176 | -7/Factory | Identified exit to Storage 2176 | -7/Factory | Identified exit to Lower Caves 2187 | -7/Factory | Upgraded with Utility slot (x1) 2214 | -7/Factory | Reached level 12 2274 | -7/Factory | Reached level 13 2307 | -7/Factory | Destroyed 10 combat bots 2311 | -7/Factory | Reached level 14 2477 | -7/Factory | Discovered new exit (range 9) 2493 | -7/Factory | First assault squad dispatched 2537 | -7/Factory | Entered another Factory area 2539 | -6/Factory | Reached level 15 2543 | -6/Factory | Upgraded with Weapon slot (x1) 2583 | -6/Factory | Found Prototype Processor 2583 | -6/Factory | Identified Exp. Signal Interpreter 2732 | -6/Factory | Spotted B-75 Beast 2735 | -6/Factory | Destroyed B-75 Beast 2798 | -6/Factory | Reached level 16 2887 | -6/Factory | First assault squad dispatched 2986 | -6/Factory | Found Hvy. Insulated Plating 3044 | -6/Factory | Assembled infested ambush trap array 3072 | -6/Factory | Reached level 17 3101 | -6/Factory | Destroyed 10 combat bots 3357 | -6/Factory | Reached level 18 3360 | -6/Factory | Upgraded with Utility slot (x1) 3385 | -6/Factory | Destroyed 7 combat bots 3538 | -6/Factory | Discovered new exit (range 15) 3551 | -6/Factory | Discovered new exit (range 20) 3593 | -6/Factory | Identified exit to Factory 3602 | -6/Factory | Entered another Factory area 3604 | -5/Factory | Reached level 19 3782 | -5/Factory | Build established: Assassin 3892 | -5/Factory | Reached level 20 3901 | -5/Factory | Upgraded with Utility slot (x1) 3933 | -5/Factory | Discovered new exit (range 9) 3960 | -5/Factory | Identified exit to Upper Caves 4043 | -5/Factory | Discovered new exit (range 10) 4053 | -5/Factory | Identified exit to Factory 4061 | -5/Factory | Entered another Factory area 4061 | -4/Factory | Accompanied by 2 allies 4063 | -4/Factory | Reached level 21 4089 | -4/Factory | Identified exit to Upper Caves 4089 | -4/Factory | Identified exit to Extension 4302 | -4/Factory | Reached level 22 4305 | -4/Factory | Upgraded with Utility slot (x1) 4443 | -4/Factory | Reached level 23 4549 | -4/Factory | Reached level 24 4561 | -4/Factory | First assault squad dispatched 4652 | -4/Factory | Core integrity fell below 50% 4686 | -4/Factory | Destroyed 11 combat bots 4773 | -4/Factory | Reached level 25 4773 | -4/Factory | High security lockdown imminent 4777 | -4/Factory | Upgraded with Utility slot (x1) 4812 | -4/Factory | Entered Extension 4908 | -4/Extension | Destroyed 7 combat bots 4921 | -4/Extension | Rewired Cogmind 4926 | -4/Extension | Rewired Cogmind 4927 | -4/Extension | Rewired Cogmind 5067 | -4/Extension | Rewired Cogmind 5069 | -4/Extension | Rewired Cogmind 5073 | -4/Extension | Rewired Cogmind 5170 | -4/Extension | Spotted B-86 Titan 5181 | -4/Extension | Spotted B-86 Titan 5190 | -4/Extension | Allies destroyed B-86 Titan 5227 | -4/Extension | Destroyed B-86 Titan 5238 | -4/Extension | Discovered new exit (range 17) 5303 | -4/Extension | Rescued A7 5312 | -4/Extension | First assault squad dispatched 5365 | -4/Extension | Rescued a captive Derelict 5386 | -4/Extension | Rewired Cogmind 5409 | -4/Extension | Rewired Cogmind 5432 | -4/Extension | Reached level 26 5464 | -4/Extension | Rewired Cogmind 5522 | -4/Extension | Rewired Cogmind 5528 | -4/Extension | Rewired Cogmind 5538 | -4/Extension | Rewired Cogmind 5540 | -4/Extension | Rewired Cogmind 5571 | -4/Extension | Rescued a captive Derelict 5644 | -4/Extension | Rewired Cogmind 5647 | -4/Extension | Rewired Cogmind 5697 | -4/Extension | Discovered new exit (range 12) 5708 | -4/Extension | Discovered new exit (range 10) 5712 | -4/Extension | Build established: Scavenger-Executioner 5716 | -4/Extension | Identified exit to Cetus 5719 | -4/Extension | Identified exit to Research 5728 | -4/Extension | Entered Cetus 5728 | -4/Cetus | Accompanied by 7 allies 5733 | -4/Cetus | Acquired a Cetus Manufacturing Module code from A7 5743 | -4/Cetus | Spotted Cetus Guard 5743 | -4/Cetus | Spotted Cetus Guard 5746 | -4/Cetus | Allies destroyed Cetus Guard 5746 | -4/Cetus | Spotted Cetus Guard 5751 | -4/Cetus | Destroyed Cetus Guard 5751 | -4/Cetus | Spotted Cetus Guard 5757 | -4/Cetus | Allies destroyed Cetus Guard 5766 | -4/Cetus | Allies destroyed Cetus Guard 5806 | -4/Cetus | Extracted ID and sensor layout for unrecognized location from A7's data core 5882 | -4/Cetus | Started Cetus Manufacturing Module 5896 | -4/Cetus | Discovered new exit (range 17) 5907 | -4/Cetus | Manufactured an Enhanced Grunt 5917 | -4/Cetus | Spotted Cetus Guard 5917 | -4/Cetus | Spotted Cetus Guard 5928 | -4/Cetus | Spotted Cetus Guard 5932 | -4/Cetus | Manufactured an Enhanced Grunt 5940 | -4/Cetus | Allies destroyed Cetus Guard 5940 | -4/Cetus | Reached level 27 5940 | -4/Cetus | Destroyed Cetus Guard 5941 | -4/Cetus | Spotted Cetus Guard 5943 | -4/Cetus | Destroyed Cetus Guard 5944 | -4/Cetus | Allies destroyed Cetus Guard 5950 | -4/Cetus | Discovered exit to Research (range 16) 5957 | -4/Cetus | Manufactured an Enhanced Grunt 5957 | -4/Cetus | Met Revision 17 5982 | -4/Cetus | Manufactured an Enhanced Grunt 6007 | -4/Cetus | Manufactured an Enhanced Grunt 6041 | -4/Cetus | Identified exit to Archives 6047 | -4/Cetus | Entered Archives 6047 | -4/Archives | Accompanied by 6 allies 6095 | -4/Archives | Discovered new exit (range 13) 6110 | -4/Archives | Identified exit to Hub_04(d) 6114 | -4/Archives | Entered Hub_04(d) 6114 | -4/Hub_04(d) | Accompanied by 6 allies 6133 | -4/Hub_04(d) | Discovered exit to Research (range 22) 6152 | -4/Hub_04(d) | Network Hub disabled 6153 | -4/Hub_04(d) | Spotted Lightning 6156 | -4/Hub_04(d) | Spotted Lightning 6156 | -4/Hub_04(d) | Spotted Lightning 6157 | -4/Hub_04(d) | Spotted Lightning 6169 | -4/Hub_04(d) | Spotted Lightning 6170 | -4/Hub_04(d) | Spotted Lightning 6170 | -4/Hub_04(d) | Spotted Lightning 6170 | -4/Hub_04(d) | Spotted Lightning 6170 | -4/Hub_04(d) | Spotted Lightning 6170 | -4/Hub_04(d) | Spotted Lightning 6170 | -4/Hub_04(d) | Spotted Lightning 6170 | -4/Hub_04(d) | Spotted Lightning 6176 | -4/Hub_04(d) | Destroyed Lightning 6179 | -4/Hub_04(d) | System corruption reached 10% 6180 | -4/Hub_04(d) | Destroyed Lightning 6181 | -4/Hub_04(d) | Core integrity fell below 20% 6183 | -4/Hub_04(d) | Destroyed Lightning 6186 | -4/Hub_04(d) | Destroyed Lightning 6186 | -4/Hub_04(d) | Destroyed by Lightning with EMDS Last Messages --------------- System corrupted: Imp. KE Penetrator jammed. Destroyed Lgt. Ion Engine. Slug penetrates Lightning. Destroyed Wheel. System corrupted: Imp. KE Penetrator targeting data glitched. Slug penetrates Lightning. Lightning suffers critical hit. Lightning destroyed. K-01 Serf destroyed. Acquired 7 matter. Acquired 17 matter. The unstable cave ceiling collapses. Neutron Cannon crushed. Penetrated by EMDS Slug. EMDS Slug penetrates Wall. U-05 Engineer destroyed. System corrupted: Micro-nuke Launcher targeting data glitched. Slug penetrates Lightning. Lightning destroyed. Penetrated by EMDS Slug. Map ----- +----------------------------------------------------+ | ???????##???#"?#"?#????###?###?#######?? [ ## | | ??????? ??? ? ?#####?##?####??# #?? #? | | ??????? ?? ?" ?#?????##??#???# #? ## | | ??????? ? ?? ????#?########## #? ==## | | ????#???? "? ####?#?# # # " " " ==#? | | ??????# ???? ?###??## # # " " " #? | | ?????#????? "?##?### # + " " " ## | | ????????? " ###??# # # ## | | ??????? ?? " ##?## # ###########? | | ??????#? " =;## # + #? ? ???? | | ???????? ? ;* !;#;# # ##? ? ?#?? | | ??????#??""""""";;; ! # # ## ?? ? ??? | | ?????????? "!%" ; # # ## ????? # | | ???? ??###?? " ; # #? ?? ?"?### | | ???????#???? ##?# !h=* # ## ?? ? ##? | | ??? ?? ?#??? ?#### !%! * ###### ##?? ???##? | | ?????????##? ??### =% #?### ##? ?? ???# | | ???? # ##?? ?### *! ##### #####?#?#? | | ?????#?? ? ???? % % ## ? ? ?? ? | | ?????#? ?? ??